[Event "Early-Titled-Tuesday-Blitz-March-05-2024"]
[Site "Chess.com"]
[Date "2024.03.05"]
[Round "9"]
[White "awesomevishesh"]
[Black "Chernov_Mikhail"]
[Result "1-0"]
[WhiteElo "2652"]
[BlackElo "2408"]
[TimeControl "180+1"]
[EndTime "9:47:28 PST"]
[Termination "awesomevishesh won by resignation"]

1. d4 {[%clk 0:03:00.9]} 1... d5 {[%clk 0:02:59.9]} 2. c4 {[%clk 0:03:00.7]}
2... dxc4 {[%clk 0:03:00.8]} 3. Nf3 {[%clk 0:02:59.9]} 3... Nf6 {[%clk
0:03:00.3]} 4. e3 {[%clk 0:02:59.5]} 4... a6 {[%clk 0:03:00.1]} 5. Bxc4 {[%clk
0:02:57.9]} 5... e6 {[%clk 0:03:00.3]} 6. O-O {[%clk 0:02:57.2]} 6... c5 {[%clk
0:02:57.2]} 7. e4 {[%clk 0:02:52.3]} 7... cxd4 {[%clk 0:02:46.4]} 8. e5 {[%clk
0:02:45.9]} 8... Nd5 {[%clk 0:02:45.7]} 9. Qxd4 {[%clk 0:02:36.4]} 9... Nc6
{[%clk 0:02:41.6]} 10. Qe4 {[%clk 0:02:27.8]} 10... b5 {[%clk 0:02:21.7]} 11.
Bxd5 {[%clk 0:01:52.8]} 11... exd5 {[%clk 0:02:22.6]} 12. Qf4 {[%clk 0:01:44.8]}
12... Be6 {[%clk 0:02:22.2]} 13. Rd1 {[%clk 0:01:41.8]} 13... Be7 {[%clk
0:02:21.5]} 14. Nc3 {[%clk 0:01:38.9]} 14... O-O {[%clk 0:02:19.4]} 15. Be3
{[%clk 0:01:37.6]} 15... Qd7 {[%clk 0:01:36.4]} 16. Nd4 {[%clk 0:01:33.1]} 16...
Nxd4 {[%clk 0:01:31.8]} 17. Bxd4 {[%clk 0:01:26.5]} 17... Rac8 {[%clk
0:01:30.9]} 18. Qe3 {[%clk 0:01:05.5]} 18... Rc4 {[%clk 0:01:13.5]} 19. a3
{[%clk 0:01:02.7]} 19... Rfc8 {[%clk 0:01:11.8]} 20. h3 {[%clk 0:01:02]} 20...
h6 {[%clk 0:01:09.8]} 21. Ne2 {[%clk 0:00:45.6]} 21... a5 {[%clk 0:00:39.8]} 22.
Rac1 {[%clk 0:00:35.6]} 22... a4 {[%clk 0:00:39]} 23. Bc3 {[%clk 0:00:30.2]}
23... Bc5 {[%clk 0:00:31.4]} 24. Nd4 {[%clk 0:00:29.9]} 24... Qa7 {[%clk
0:00:27.9]} 25. Ra1 {[%clk 0:00:26.2]} 25... b4 {[%clk 0:00:10.1]} 26. axb4
{[%clk 0:00:25.7]} 26... Bxb4 {[%clk 0:00:11]} 27. Bxb4 {[%clk 0:00:23.5]} 27...
Rxb4 {[%clk 0:00:10.6]} 28. Qd2 {[%clk 0:00:18.4]} 28... Rbc4 {[%clk 0:00:10.1]}
29. Ra3 {[%clk 0:00:15.6]} 29... Qa6 {[%clk 0:00:09.2]} 30. Kh2 {[%clk
0:00:15.3]} 30... Qb6 {[%clk 0:00:08.5]} 31. Raa1 {[%clk 0:00:06.1]} 31... Rb4
{[%clk 0:00:08.8]} 32. Ra2 {[%clk 0:00:04.5]} 32... Rcc4 {[%clk 0:00:08.4]} 33.
Ne2 {[%clk 0:00:04.2]} 33... d4 {[%clk 0:00:06.6]} 34. Nf4 {[%clk 0:00:04.3]}
34... Bf5 {[%clk 0:00:06.3]} 35. g4 {[%clk 0:00:04]} 35... Be4 {[%clk
0:00:05.3]} 36. Re1 {[%clk 0:00:04]} 36... Bf3 {[%clk 0:00:05.4]} 37. Qd3 {[%clk
0:00:03.8]} 37... Bb7 {[%clk 0:00:05.5]} 38. e6 {[%clk 0:00:04.1]} 38... fxe6
{[%clk 0:00:04.2]} 39. Rxe6 {[%clk 0:00:03.9]} 39... Rc6 {[%clk 0:00:04.8]} 40.
Re7 {[%clk 0:00:03.8]} 40... Rf6 {[%clk 0:00:04.2]} 41. Re8+ {[%clk 0:00:04]}
41... Rf8 {[%clk 0:00:04.1]} 42. Rxf8+ {[%clk 0:00:04.1]} 42... Kxf8 {[%clk
0:00:05]} 43. Ra1 {[%clk 0:00:03.6]} 43... Qc6 {[%clk 0:00:04.4]} 44. Re1 {[%clk
0:00:03.2]} 44... g5 {[%clk 0:00:03.8]} 45. Qf5+ {[%clk 0:00:03.4]} 45... Kg7
{[%clk 0:00:03.3]} 46. Re7+ {[%clk 0:00:03.5]} 46... Kg8 {[%clk 0:00:04.2]} 47.
Qf7+ {[%clk 0:00:03.9]} 1-0

[Event "Early-Titled-Tuesday-Blitz-March-05-2024"]
[Site "Chess.com"]
[Date "2024.03.05"]
[Round "9"]
[White "GilbertoHernandezAmura"]
[Black "Caroexpert"]
[Result "1-0"]
[WhiteElo "2469"]
[BlackElo "2590"]
[TimeControl "180+1"]
[EndTime "9:47:28 PST"]
[Termination "GilbertoHernandezAmura won on time"]

1. c4 {[%clk 0:02:59.8]} 1... a6 {[%clk 0:02:59.8]} 2. g3 {[%clk 0:02:58.7]}
2... e6 {[%clk 0:02:59.5]} 3. Bg2 {[%clk 0:02:58.7]} 3... d5 {[%clk 0:02:59.9]}
4. a4 {[%clk 0:02:54.6]} 4... Nf6 {[%clk 0:02:57.6]} 5. Nc3 {[%clk 0:02:50.7]}
5... c6 {[%clk 0:02:56.3]} 6. b3 {[%clk 0:02:47.5]} 6... d4 {[%clk 0:02:52.3]}
7. Ne4 {[%clk 0:02:47.1]} 7... Nxe4 {[%clk 0:02:49.7]} 8. Bxe4 {[%clk 0:02:48]}
8... f5 {[%clk 0:02:49.9]} 9. Bg2 {[%clk 0:02:47.7]} 9... e5 {[%clk 0:02:50.1]}
10. d3 {[%clk 0:02:43.8]} 10... Bb4+ {[%clk 0:02:48.7]} 11. Bd2 {[%clk
0:02:43.8]} 11... a5 {[%clk 0:02:47.3]} 12. Bxb4 {[%clk 0:02:40.1]} 12... axb4
{[%clk 0:02:46.8]} 13. Nf3 {[%clk 0:02:40.5]} 13... Qe7 {[%clk 0:02:44.8]} 14.
O-O {[%clk 0:02:38.1]} 14... O-O {[%clk 0:02:44.9]} 15. Re1 {[%clk 0:02:32.8]}
15... c5 {[%clk 0:02:44.8]} 16. e3 {[%clk 0:02:32.8]} 16... Qf6 {[%clk
0:02:14.9]} 17. exd4 {[%clk 0:02:29.6]} 17... exd4 {[%clk 0:02:14.4]} 18. Re5
{[%clk 0:02:19.7]} 18... Nd7 {[%clk 0:02:10]} 19. Rd5 {[%clk 0:02:10.5]} 19...
Re8 {[%clk 0:01:59.5]} 20. Nh4 {[%clk 0:02:06.8]} 20... g6 {[%clk 0:01:56]} 21.
Qf1 {[%clk 0:02:00.1]} 21... Ra6 {[%clk 0:01:52]} 22. Nf3 {[%clk 0:01:46.3]}
22... Rae6 {[%clk 0:01:50.8]} 23. h4 {[%clk 0:01:46]} 23... h6 {[%clk
0:01:50.2]} 24. h5 {[%clk 0:01:42.5]} 24... g5 {[%clk 0:01:49.8]} 25. Nd2 {[%clk
0:01:23.5]} 25... g4 {[%clk 0:00:55.1]} 26. a5 {[%clk 0:01:19.9]} 26... Qf8
{[%clk 0:00:39.1]} 27. f3 {[%clk 0:01:15.3]} 27... Re2 {[%clk 0:00:35.6]} 28.
Rd1 {[%clk 0:00:56]} 28... Qe7 {[%clk 0:00:35.1]} 29. Kh1 {[%clk 0:00:28.5]}
29... Qe3 {[%clk 0:00:24.2]} 30. fxg4 {[%clk 0:00:25.7]} 30... Rxd2 {[%clk
0:00:17.1]} 31. Rxd2 {[%clk 0:00:26.4]} 31... Qxd2 {[%clk 0:00:17.3]} 32. Qxf5
{[%clk 0:00:27.1]} 32... Nf8 {[%clk 0:00:12.7]} 33. Qf6 {[%clk 0:00:23.5]} 33...
Qd1+ {[%clk 0:00:09.4]} 34. Kh2 {[%clk 0:00:23.8]} 34... Qxg4 {[%clk 0:00:10]}
35. Qxh6 {[%clk 0:00:23.7]} 35... Ne6 {[%clk 0:00:06.8]} 36. Re5 {[%clk
0:00:19.7]} 36... Qg7 {[%clk 0:00:05.1]} 37. Qxg7+ {[%clk 0:00:12.5]} 37... Kxg7
{[%clk 0:00:05.6]} 38. Bh3 {[%clk 0:00:13.1]} 38... Kf6 {[%clk 0:00:05.6]} 39.
Rf5+ {[%clk 0:00:13.6]} 39... Ke7 {[%clk 0:00:05.7]} 40. Re5 {[%clk 0:00:13.7]}
40... Kd6 {[%clk 0:00:06]} 41. Rd5+ {[%clk 0:00:14.4]} 41... Kc6 {[%clk
0:00:06.6]} 42. Bg2 {[%clk 0:00:14.4]} 42... Kc7 {[%clk 0:00:06.3]} 43. h6
{[%clk 0:00:14.1]} 43... Rh8 {[%clk 0:00:06.1]} 44. Rh5 {[%clk 0:00:13.4]} 44...
Nf8 {[%clk 0:00:05.4]} 45. Be4 {[%clk 0:00:13]} 45... Kd6 {[%clk 0:00:04.7]} 46.
h7 {[%clk 0:00:13.5]} 46... Be6 {[%clk 0:00:04.3]} 47. Rh6 {[%clk 0:00:11.5]}
47... Ke7 {[%clk 0:00:04.4]} 48. Bxb7 {[%clk 0:00:10]} 48... Kf7 {[%clk
0:00:03.8]} 49. a6 {[%clk 0:00:10]} 49... Nd7 {[%clk 0:00:02.5]} 50. a7 {[%clk
0:00:09.3]} 50... Kg7 {[%clk 0:00:01.7]} 51. Rxe6 {[%clk 0:00:08.9]} 1-0

[Event "Early-Titled-Tuesday-Blitz-March-05-2024"]
[Site "Chess.com"]
[Date "2024.03.05"]
[Round "9"]
[White "Nuvas"]
[Black "ChessLover0108"]
[Result "0-1"]
[WhiteElo "2803"]
[BlackElo "2956"]
[TimeControl "180+1"]
[EndTime "9:47:29 PST"]
[Termination "ChessLover0108 won by checkmate"]

1. d4 {[%clk 0:03:00.1]} 1... Nf6 {[%clk 0:02:55.9]} 2. c4 {[%clk 0:03:00.2]}
2... e6 {[%clk 0:02:55.9]} 3. Nc3 {[%clk 0:03:00.6]} 3... Bb4 {[%clk 0:02:56.3]}
4. Qc2 {[%clk 0:03:01.1]} 4... d5 {[%clk 0:02:56]} 5. a3 {[%clk 0:03:01.3]} 5...
Bxc3+ {[%clk 0:02:54.7]} 6. Qxc3 {[%clk 0:03:02.2]} 6... dxc4 {[%clk 0:02:55.6]}
7. Qxc4 {[%clk 0:03:01.2]} 7... b6 {[%clk 0:02:52.2]} 8. Bf4 {[%clk 0:03:00]}
8... Nd5 {[%clk 0:02:30.8]} 9. Bg3 {[%clk 0:02:50.9]} 9... O-O {[%clk
0:02:30.7]} 10. Nf3 {[%clk 0:02:42.6]} 10... Ba6 {[%clk 0:02:26.4]} 11. Qc2
{[%clk 0:02:42.8]} 11... c5 {[%clk 0:02:21.3]} 12. e4 {[%clk 0:02:35.3]} 12...
Bxf1 {[%clk 0:02:20.1]} 13. Rxf1 {[%clk 0:02:35.9]} 13... Nf6 {[%clk 0:02:05.7]}
14. Rd1 {[%clk 0:02:24.4]} 14... Qc8 {[%clk 0:01:37.4]} 15. dxc5 {[%clk
0:02:21.1]} 15... bxc5 {[%clk 0:01:36.1]} 16. Bd6 {[%clk 0:02:17.3]} 16... Rd8
{[%clk 0:01:35.6]} 17. e5 {[%clk 0:02:17.7]} 17... Ne8 {[%clk 0:01:21.6]} 18.
Ng5 {[%clk 0:02:13.5]} 18... f5 {[%clk 0:01:03.4]} 19. Qxc5 {[%clk 0:01:54.5]}
19... Nc6 {[%clk 0:00:55.7]} 20. f4 {[%clk 0:01:44.3]} 20... h6 {[%clk
0:00:41.9]} 21. Nxe6 {[%clk 0:01:38.6]} 21... Qxe6 {[%clk 0:00:42.8]} 22. Qxc6
{[%clk 0:01:38.1]} 22... Rac8 {[%clk 0:00:42.8]} 23. Qd5 {[%clk 0:01:33.8]}
23... Rxd6 {[%clk 0:00:41.5]} 24. Qxe6+ {[%clk 0:01:28.1]} 24... Rxe6 {[%clk
0:00:42.4]} 25. Rd2 {[%clk 0:01:28.2]} 25... Rec6 {[%clk 0:00:39.3]} 26. Ke2
{[%clk 0:01:28]} 26... Nc7 {[%clk 0:00:37.8]} 27. Rfd1 {[%clk 0:01:24.9]} 27...
Ne6 {[%clk 0:00:35.4]} 28. Kf3 {[%clk 0:01:25.1]} 28... g5 {[%clk 0:00:33]} 29.
g3 {[%clk 0:01:25.5]} 29... R8c7 {[%clk 0:00:26.8]} 30. Rd6 {[%clk 0:01:16.5]}
30... Kf7 {[%clk 0:00:26.3]} 31. Rd7+ {[%clk 0:01:16.4]} 31... Kg6 {[%clk
0:00:20]} 32. Rxc7 {[%clk 0:01:07.2]} 32... Rxc7 {[%clk 0:00:20.9]} 33. Rd6
{[%clk 0:01:07.6]} 33... Kf7 {[%clk 0:00:21.2]} 34. Ra6 {[%clk 0:01:06]} 34...
Rb7 {[%clk 0:00:17.7]} 35. b4 {[%clk 0:01:05.8]} 35... Rc7 {[%clk 0:00:17.8]}
36. Ke3 {[%clk 0:00:57.7]} 36... gxf4+ {[%clk 0:00:14.8]} 37. gxf4 {[%clk
0:00:57.8]} 37... Ke7 {[%clk 0:00:15.7]} 38. Kf3 {[%clk 0:00:50.2]} 38... Rc3+
{[%clk 0:00:14.1]} 39. Kf2 {[%clk 0:00:48.8]} 39... Nxf4 {[%clk 0:00:15]} 40.
Rxa7+ {[%clk 0:00:49.1]} 40... Ke6 {[%clk 0:00:15]} 41. b5 {[%clk 0:00:45.7]}
41... Kxe5 {[%clk 0:00:12.8]} 42. a4 {[%clk 0:00:42.4]} 42... Rb3 {[%clk
0:00:10.7]} 43. Ra6 {[%clk 0:00:42.4]} 43... Ke4 {[%clk 0:00:09.3]} 44. Rxh6
{[%clk 0:00:19.8]} 44... Rb2+ {[%clk 0:00:09.8]} 45. Ke1 {[%clk 0:00:20.2]}
45... Ke3 {[%clk 0:00:08.5]} 46. Kd1 {[%clk 0:00:20.7]} 46... Nd3 {[%clk
0:00:02.8]} 47. Re6+ {[%clk 0:00:20.1]} 47... Kd4 {[%clk 0:00:03.1]} 48. b6
{[%clk 0:00:18.7]} 48... f4 {[%clk 0:00:03.3]} 49. a5 {[%clk 0:00:14.2]} 49...
f3 {[%clk 0:00:03.9]} 50. a6 {[%clk 0:00:12.9]} 50... f2 {[%clk 0:00:02.9]} 51.
Rf6 {[%clk 0:00:13.4]} 51... Rxb6 {[%clk 0:00:03.1]} 52. Rf3 {[%clk 0:00:09]}
52... Rxa6 {[%clk 0:00:02.8]} 53. h4 {[%clk 0:00:09.7]} 53... Ra1+ {[%clk
0:00:03]} 54. Ke2 {[%clk 0:00:10.4]} 54... Re1+ {[%clk 0:00:03.7]} 55. Kd2
{[%clk 0:00:10.5]} 55... f1=Q {[%clk 0:00:04.6]} 56. Rxf1 {[%clk 0:00:11.4]}
56... Rxf1 {[%clk 0:00:05.5]} 57. h5 {[%clk 0:00:12.2]} 57... Rf2+ {[%clk
0:00:06.1]} 58. Kd1 {[%clk 0:00:12.3]} 58... Ke3 {[%clk 0:00:06.6]} 59. h6
{[%clk 0:00:09.3]} 59... Rd2# {[%clk 0:00:07.5]} 0-1

[Event "Early-Titled-Tuesday-Blitz-March-05-2024"]
[Site "Chess.com"]
[Date "2024.03.05"]
[Round "9"]
[White "wonderfultime"]
[Black "alexrustemov"]
[Result "1-0"]
[WhiteElo "3035"]
[BlackElo "2808"]
[TimeControl "180+1"]
[EndTime "9:47:31 PST"]
[Termination "wonderfultime won on time"]

1. d4 {[%clk 0:02:55.3]} 1... d5 {[%clk 0:03:00.4]} 2. Nf3 {[%clk 0:02:55]} 2...
Nf6 {[%clk 0:03:00.2]} 3. Bf4 {[%clk 0:02:55.7]} 3... c5 {[%clk 0:03:00.5]} 4.
c3 {[%clk 0:02:55.8]} 4... Qb6 {[%clk 0:02:53.2]} 5. Qc2 {[%clk 0:02:55.7]} 5...
g6 {[%clk 0:02:48.7]} 6. e3 {[%clk 0:02:55]} 6... Bf5 {[%clk 0:02:48]} 7. dxc5
{[%clk 0:02:55]} 7... Qxc5 {[%clk 0:02:40.7]} 8. Qb3 {[%clk 0:02:55.5]} 8... Qb6
{[%clk 0:02:26]} 9. Qxb6 {[%clk 0:02:53.4]} 9... axb6 {[%clk 0:02:25.6]} 10. Na3
{[%clk 0:02:54.1]} 10... Na6 {[%clk 0:02:02.9]} 11. Nb5 {[%clk 0:02:51.7]} 11...
Rc8 {[%clk 0:01:57]} 12. Be2 {[%clk 0:02:27.8]} 12... Bg7 {[%clk 0:01:57.3]} 13.
O-O {[%clk 0:02:28.6]} 13... O-O {[%clk 0:01:57.5]} 14. Rfd1 {[%clk 0:02:29.3]}
14... Rfd8 {[%clk 0:01:57.5]} 15. h3 {[%clk 0:02:27.1]} 15... Ne4 {[%clk
0:01:55.9]} 16. Bh2 {[%clk 0:02:23.2]} 16... f6 {[%clk 0:01:49.3]} 17. Nfd4
{[%clk 0:02:03.8]} 17... Bd7 {[%clk 0:01:48.7]} 18. Nb3 {[%clk 0:01:50.5]} 18...
Be8 {[%clk 0:01:42.7]} 19. N5d4 {[%clk 0:01:24.3]} 19... Bd7 {[%clk 0:01:41.1]}
20. Nb5 {[%clk 0:01:22.4]} 20... Be8 {[%clk 0:01:40.2]} 21. a4 {[%clk 0:01:15]}
21... Nac5 {[%clk 0:01:31.1]} 22. Nxc5 {[%clk 0:01:14.2]} 22... Nxc5 {[%clk
0:01:25.3]} 23. Bf3 {[%clk 0:01:04.9]} 23... Bf7 {[%clk 0:01:13.3]} 24. Bc7
{[%clk 0:01:02.5]} 24... Rd7 {[%clk 0:01:08.9]} 25. Bxb6 {[%clk 0:01:02.3]}
25... e5 {[%clk 0:01:03.7]} 26. a5 {[%clk 0:01:02.6]} 26... Bf8 {[%clk
0:01:02.1]} 27. Bg4 {[%clk 0:00:54.7]} 27... f5 {[%clk 0:00:58.4]} 28. Bf3
{[%clk 0:00:55.5]} 28... Be6 {[%clk 0:00:53]} 29. b4 {[%clk 0:00:48.5]} 29...
Ne4 {[%clk 0:00:50.1]} 30. Rac1 {[%clk 0:00:48.9]} 30... Kf7 {[%clk 0:00:48.9]}
31. Be2 {[%clk 0:00:48.5]} 31... Be7 {[%clk 0:00:46.9]} 32. f3 {[%clk
0:00:48.5]} 32... Nd6 {[%clk 0:00:40.2]} 33. Nxd6+ {[%clk 0:00:45.7]} 33... Rxd6
{[%clk 0:00:39.5]} 34. Bb5 {[%clk 0:00:46.1]} 34... Bd7 {[%clk 0:00:34.8]} 35.
Bxd7 {[%clk 0:00:45.8]} 35... Rxd7 {[%clk 0:00:35]} 36. Kf2 {[%clk 0:00:40]}
36... Ke6 {[%clk 0:00:34.9]} 37. Ke2 {[%clk 0:00:40.5]} 37... Rd6 {[%clk
0:00:30.7]} 38. f4 {[%clk 0:00:37.6]} 38... Rdc6 {[%clk 0:00:29.6]} 39. b5
{[%clk 0:00:33.2]} 39... Rxc3 {[%clk 0:00:27.1]} 40. Rxc3 {[%clk 0:00:34.1]}
40... Rxc3 {[%clk 0:00:27.3]} 41. Ra1 {[%clk 0:00:34.6]} 41... Rc8 {[%clk
0:00:15.7]} 42. a6 {[%clk 0:00:34.6]} 42... bxa6 {[%clk 0:00:15.5]} 43. bxa6
{[%clk 0:00:35.2]} 43... Ra8 {[%clk 0:00:15]} 44. a7 {[%clk 0:00:35.8]} 44...
Bd6 {[%clk 0:00:09.3]} 45. fxe5 {[%clk 0:00:32.9]} 45... Bxe5 {[%clk 0:00:09]}
46. Ra6 {[%clk 0:00:32.6]} 46... Kd7 {[%clk 0:00:09]} 47. Kd3 {[%clk 0:00:31.5]}
47... Kc6 {[%clk 0:00:06.8]} 48. Bd4+ {[%clk 0:00:26.7]} 48... Kb7 {[%clk
0:00:05.8]} 49. Ra5 {[%clk 0:00:14.3]} 49... Bxd4 {[%clk 0:00:05]} 50. Kxd4
{[%clk 0:00:15.2]} 50... Rxa7 {[%clk 0:00:05.7]} 51. Rxa7+ {[%clk 0:00:15.5]}
51... Kxa7 {[%clk 0:00:06.6]} 52. Kxd5 {[%clk 0:00:16.1]} 52... Kb6 {[%clk
0:00:07]} 53. Ke5 {[%clk 0:00:12.2]} 53... Kc5 {[%clk 0:00:06.4]} 54. Kf6 {[%clk
0:00:12.9]} 54... Kd5 {[%clk 0:00:05.8]} 55. Kg7 {[%clk 0:00:13.7]} 55... Ke4
{[%clk 0:00:03.4]} 56. Kxh7 {[%clk 0:00:14.5]} 56... Kxe3 {[%clk 0:00:03]} 57.
Kxg6 {[%clk 0:00:15.1]} 57... f4 {[%clk 0:00:02.9]} 58. Kf5 {[%clk 0:00:15.3]}
1-0

[Event "Early-Titled-Tuesday-Blitz-March-05-2024"]
[Site "Chess.com"]
[Date "2024.03.05"]
[Round "9"]
[White "GMSrinath"]
[Black "Shushik"]
[Result "1-0"]
[WhiteElo "2804"]
[BlackElo "2558"]
[TimeControl "180+1"]
[EndTime "9:47:33 PST"]
[Termination "GMSrinath won by checkmate"]

1. e4 {[%clk 0:03:00.9]} 1... e5 {[%clk 0:02:58.9]} 2. Nf3 {[%clk 0:03:01.2]}
2... Nc6 {[%clk 0:02:59.6]} 3. Bb5 {[%clk 0:03:01.6]} 3... Nf6 {[%clk
0:02:59.8]} 4. d3 {[%clk 0:03:01]} 4... d6 {[%clk 0:02:59.7]} 5. O-O {[%clk
0:02:57.2]} 5... a6 {[%clk 0:03:00]} 6. Ba4 {[%clk 0:02:55.9]} 6... b5 {[%clk
0:03:00.2]} 7. Bb3 {[%clk 0:02:55.7]} 7... Na5 {[%clk 0:03:00.5]} 8. Re1 {[%clk
0:02:54.2]} 8... Be7 {[%clk 0:02:59.6]} 9. d4 {[%clk 0:02:50.6]} 9... exd4
{[%clk 0:02:48]} 10. c3 {[%clk 0:02:39.9]} 10... Nxb3 {[%clk 0:02:44.8]} 11.
axb3 {[%clk 0:02:39.3]} 11... dxc3 {[%clk 0:02:43.9]} 12. Nxc3 {[%clk
0:02:40.2]} 12... Bg4 {[%clk 0:02:36.9]} 13. h3 {[%clk 0:02:36.3]} 13... Bh5
{[%clk 0:02:36.8]} 14. g4 {[%clk 0:02:33]} 14... Bg6 {[%clk 0:02:36.5]} 15. e5
{[%clk 0:02:33.2]} 15... dxe5 {[%clk 0:02:35.8]} 16. Qxd8+ {[%clk 0:02:31.7]}
16... Kxd8 {[%clk 0:02:25.3]} 17. Nxe5 {[%clk 0:02:32.6]} 17... Bd6 {[%clk
0:02:22.1]} 18. Nxb5 {[%clk 0:02:23.4]} 18... Re8 {[%clk 0:02:09.1]} 19. Nxd6
{[%clk 0:02:15.2]} 19... cxd6 {[%clk 0:02:10]} 20. Nf3 {[%clk 0:02:16]} 20...
Rxe1+ {[%clk 0:02:00.5]} 21. Nxe1 {[%clk 0:02:16.9]} 21... Kd7 {[%clk
0:01:57.5]} 22. f3 {[%clk 0:02:10.2]} 22... Nd5 {[%clk 0:01:50.8]} 23. Bd2
{[%clk 0:02:05.8]} 23... f6 {[%clk 0:01:44.3]} 24. Kf2 {[%clk 0:02:06.2]} 24...
h6 {[%clk 0:01:39.8]} 25. Ra3 {[%clk 0:01:57.9]} 25... Nc7 {[%clk 0:01:36.6]}
26. Ng2 {[%clk 0:01:54.5]} 26... Nb5 {[%clk 0:01:36.5]} 27. Ra5 {[%clk
0:01:53.3]} 27... Nd4 {[%clk 0:01:34.3]} 28. Ra3 {[%clk 0:01:51.8]} 28... Bf7
{[%clk 0:01:23.3]} 29. b4 {[%clk 0:01:49.2]} 29... Nb5 {[%clk 0:01:13.3]} 30.
Ra1 {[%clk 0:01:48.4]} 30... Nd4 {[%clk 0:01:11.6]} 31. Bc3 {[%clk 0:01:43.3]}
31... Nb5 {[%clk 0:01:09.6]} 32. Ne3 {[%clk 0:01:43.2]} 32... d5 {[%clk
0:01:05.3]} 33. Nf5 {[%clk 0:01:41.6]} 33... Bg6 {[%clk 0:00:45.9]} 34. Nxg7
{[%clk 0:01:36.1]} 34... d4 {[%clk 0:00:46.3]} 35. Bxd4 {[%clk 0:01:30.5]} 35...
Nxd4 {[%clk 0:00:44]} 36. Rd1 {[%clk 0:01:31.1]} 36... Rc8 {[%clk 0:00:42.3]}
37. Rxd4+ {[%clk 0:01:31]} 37... Ke7 {[%clk 0:00:42.9]} 38. f4 {[%clk
0:01:08.3]} 38... Rc2+ {[%clk 0:00:42.2]} 39. Kg3 {[%clk 0:01:08.4]} 39... Rxb2
{[%clk 0:00:41.5]} 40. f5 {[%clk 0:01:09]} 40... Bf7 {[%clk 0:00:40.6]} 41. Re4+
{[%clk 0:01:04.9]} 41... Kd7 {[%clk 0:00:36.9]} 42. Ne6 {[%clk 0:01:03.8]} 42...
Kd6 {[%clk 0:00:32.6]} 43. Nc5 {[%clk 0:00:58.9]} 43... Ra2 {[%clk 0:00:32.2]}
44. Kf4 {[%clk 0:00:46.5]} 44... Bd5 {[%clk 0:00:31.4]} 45. Rd4 {[%clk
0:00:41.2]} 45... Rf2+ {[%clk 0:00:31.3]} 46. Kg3 {[%clk 0:00:39.4]} 46... Rf3+
{[%clk 0:00:31.4]} 47. Kh4 {[%clk 0:00:40]} 47... Ke5 {[%clk 0:00:29.9]} 48. Rd3
{[%clk 0:00:37]} 48... Rf1 {[%clk 0:00:22.6]} 49. Nd7+ {[%clk 0:00:35]} 49...
Ke4 {[%clk 0:00:21.5]} 50. Rd2 {[%clk 0:00:35.4]} 50... Bc4 {[%clk 0:00:15.2]}
51. Nxf6+ {[%clk 0:00:35.2]} 51... Kf3 {[%clk 0:00:14.3]} 52. Nd7 {[%clk
0:00:32.1]} 52... Bb5 {[%clk 0:00:10]} 53. Ne5+ {[%clk 0:00:27.8]} 53... Ke3
{[%clk 0:00:09.9]} 54. Rd6 {[%clk 0:00:25.9]} 54... Ke4 {[%clk 0:00:08.9]} 55.
Nf7 {[%clk 0:00:23.7]} 55... Kf4 {[%clk 0:00:06.7]} 56. Nxh6 {[%clk 0:00:13.3]}
56... Rh1 {[%clk 0:00:06.8]} 57. Nf7 {[%clk 0:00:12.8]} 57... Bf1 {[%clk
0:00:05.8]} 58. Ng5 {[%clk 0:00:12.9]} 58... Ke5 {[%clk 0:00:04.1]} 59. Re6+
{[%clk 0:00:12.3]} 59... Kf4 {[%clk 0:00:04.5]} 60. Re4# {[%clk 0:00:12.4]} 1-0